fUSD/lending_fUSD_20260202
["ID","MTS","AMOUNT","RATE_DAILY","PERIOD"]
[404358571,1770075049541,-721.34,0.00013698,2]
[404358572,1770075049551,-721.34,0.00013698,2]
[404358573,1770075049561,-721.34,0.00013698,2]
[404358574,1770075049570,-721.34,0.00013698,2]
[404358575,1770075049579,-721.34,0.00013698,2]
[404358576,1770075049589,-721.34,0.00013698,2]
[404358577,1770075049598,-721.34,0.00013698,2]
[404358578,1770075049608,-721.34,0.00013698,2]
[404358579,1770075049619,-721.34,0.00013698,2]
[404358580,1770075049629,-721.34,0.00013698,2]
[404358581,1770075049639,-721.34,0.00013698,2]
[404358582,1770075049648,-721.34,0.00013698,2]
[404358583,1770075049658,-721.34,0.00013698,2]
[404358584,1770075049668,-721.34,0.00013698,2]
[404358585,1770075049678,-721.34,0.00013698,2]
[404358586,1770075049687,-721.34,0.00013698,2]
[404358587,1770075049697,-520.9392261,0.00013698,2]
[404358588,1770075049706,-1355.09,0.00013698,2]
[404358589,1770075049717,-1355.09,0.00013698,2]
[404358590,1770075049729,-1355.09,0.00013698,2]
[404358591,1770075049739,-1355.09,0.00013698,2]
[404358592,1770075049753,-1355.09,0.00013698,2]
[404358593,1770075049765,-1355.09,0.00013698,2]
[404358594,1770075049785,-1355.09,0.00013698,2]
[404358595,1770075049801,-1355.09,0.00013698,2]
[404358596,1770075049812,-1355.09,0.00013698,2]
[404358597,1770075049824,-1355.09,0.00013698,2]
[404358598,1770075049835,-1355.09,0.00013698,2]
[404358599,1770075049845,-1355.09,0.00013698,2]
[404358600,1770075049856,-1355.09,0.00013698,2]
[404358601,1770075049867,-1355.09,0.00013698,2]
[404358602,1770075049877,-1355.09,0.00013698,2]
[404358603,1770075049888,-1355.09,0.00013698,2]
[404358604,1770075049899,-1355.09,0.00013698,2]
[404358605,1770075049909,-500.0,0.00013698,2]
[404358606,1770075049922,-500.0,0.00013698,2]
[404358607,1770075049934,-500.0,0.00013698,2]
[404358608,1770075049945,-500.0,0.00013698,2]
[404358609,1770075049957,-500.0,0.00013698,2]
[404358610,1770075049968,-500.0,0.00013698,2]
[404358611,1770075049978,-500.0,0.00013698,2]
[404358612,1770075049990,-500.0,0.00013698,2]
[404358613,1770075050001,-500.0,0.00013698,2]
[404358614,1770075050023,-500.0,0.00013698,2]
[404358615,1770075050033,-500.0,0.00013698,2]
[404358616,1770075050044,-500.0,0.00013698,2]
[404358617,1770075050053,-500.0,0.00013698,2]
[404358618,1770075050065,-500.0,0.00013698,2]
[404358619,1770075050074,-500.0,0.00013698,2]
[404358620,1770075050087,-500.0,0.00013698,2]
[404358621,1770075050097,-500.0,0.00013698,2]
[404358622,1770075050107,-500.0,0.00013698,2]
[404358623,1770075050116,-500.0,0.00013698,2]
[404358624,1770075050126,-500.0,0.00013698,2]
[404358625,1770075050135,-500.0,0.00013698,2]
[404358626,1770075050145,-500.0,0.00013698,2]
[404358627,1770075050154,-172.30032513,0.00013698,2]
[404358628,1770075050164,-500.0,0.00013698,2]
[404358629,1770075050175,-500.0,0.00013698,2]
[404358630,1770075050184,-500.0,0.00013698,2]
[404358631,1770075050196,-500.0,0.00013698,2]
[404358632,1770075050207,-500.0,0.00013698,2]
[404358633,1770075050220,-500.0,0.00013698,2]
[404358634,1770075050232,-613.19482535,0.00013698,2]
[404358635,1770075050243,-540.92,0.00013698,2]
[404358636,1770075050253,-540.92,0.00013698,2]
[404358637,1770075050263,-540.92,0.00013698,2]
[404358638,1770075050273,-540.92,0.00013698,2]
[404358639,1770075050287,-540.92,0.00013698,2]
[404358640,1770075050297,-540.92,0.00013698,2]
[404358641,1770075050307,-540.92,0.00013698,2]
[404358642,1770075050316,-540.92,0.00013698,2]
[404358643,1770075050325,-540.92,0.00013698,2]
[404358644,1770075050336,-540.92,0.00013698,2]
[404358645,1770075050345,-540.92,0.00013698,2]
[404358646,1770075050354,-540.92,0.00013698,2]
[404358647,1770075050364,-540.92,0.00013698,2]
[404358648,1770075050374,-540.92,0.00013698,2]
[404358649,1770075050384,-540.92,0.00013698,2]
[404358650,1770075050395,-540.92,0.00013698,2]
[404358651,1770075050406,-540.92,0.00013698,2]
[404358652,1770075050416,-540.92,0.00013698,2]
[404358653,1770075050428,-540.92,0.00013698,2]
[404358654,1770075050439,-272.51,0.00013699,2]
[404358655,1770075050450,-227.09,0.00013699,2]
[404358656,1770075050460,-189.24,0.00013699,2]
[404358657,1770075050473,-157.7,0.00013699,2]
[404358658,1770075050483,-788.53,0.00013699,2]
[404358659,1770075050494,-200.0,0.00013699,2]
[404358660,1770075050504,-261.85996647,0.00013699,2]
[404358661,1770075050515,-500.63586771,0.00013699,2]
[404358662,1770075050528,-500.0,0.00013699,2]
[404358663,1770075050733,-500.0,0.00013699,2]
[404358664,1770075050742,-559.67308476,0.00013699,2]
[404358665,1770075050753,-500.0,0.00013699,2]
[404358666,1770075050762,-500.0,0.00013699,2]
[404358667,1770075050772,-500.0,0.00013699,2]
[404358668,1770075050781,-163.12661798,0.00013699,2]
[404358669,1770075050791,-336.43827265,0.00013699,2]
[404358670,1770075050800,-340.09137446,0.00013699,2]
[404358671,1770075050810,-500.40906893,0.00013699,2]
[404358672,1770075050820,-500.62768041,0.00013699,2]
[404358673,1770075050829,-151.07783782,0.00013699,2]
[404358674,1770075050839,-160.54295648,0.00013699,2]
[404358675,1770075050848,-500.0,0.00013699,2]
[404358676,1770075050857,-161.45537985,0.00013699,2]
[404358677,1770075050867,-500.0,0.00013699,2]
[404358678,1770075050876,-163.46067997,0.00013699,2]
[404358679,1770075050885,-500.0,0.00013699,2]
[404358680,1770075050894,-512.94754167,0.00013699,2]
[404358681,1770075050903,-500.0,0.00013699,2]
[404358682,1770075050912,-500.0,0.00013699,2]
[404358683,1770075050921,-500.0,0.00013699,2]
[404358684,1770075050930,-500.0,0.00013699,2]
[404358685,1770075050940,-464.35211832,0.00013699,2]
[404358686,1770075050949,-500.0,0.00013699,2]
[404358687,1770075050958,-500.0,0.00013699,2]
[404358688,1770075050967,-500.6120606,0.00013699,2]
[404358689,1770075050977,-500.0,0.00013699,2]
[404358690,1770075050987,-500.0,0.00013699,2]
[404358691,1770075050998,-500.0,0.00013699,2]
[404358692,1770075051012,-160.61738464,0.00013699,2]
[404358693,1770075051023,-500.41005015,0.00013699,2]
[404358694,1770075051034,-460.30125151,0.00013699,2]
[404358695,1770075051045,-550.09529227,0.00013699,2]
[404358696,1770075051055,-500.0,0.00013699,2]
[404358697,1770075051065,-185.46503654,0.00013699,2]
[404358698,1770075051074,-500.0,0.00013699,2]
[404358699,1770075051085,-500.0,0.00013699,2]
[404358700,1770075051094,-500.0,0.00013699,2]
[404358701,1770075051103,-500.0,0.00013699,2]
[404358702,1770075051113,-593.37800921,0.00013699,2]
[404358703,1770075051123,-500.0,0.00013699,2]
[404358704,1770075051132,-500.0,0.00013699,2]
[404358705,1770075051142,-200.70028911,0.00013699,2]
[404358706,1770075051152,-500.0,0.00013699,2]
[404358707,1770075051163,-565.00011393,0.00013699,2]
[404358708,1770075051172,-500.0,0.00013699,2]
[404358709,1770075051181,-500.0,0.00013699,2]
[404358710,1770075051190,-486.29318482,0.00013699,2]
[404358711,1770075051198,-500.0,0.00013699,2]
[404358712,1770075051207,-168.03217975,0.00013699,2]
[404358713,1770075051216,-500.0,0.00013699,2]
[404358714,1770075051226,-500.0,0.00013699,2]
[404358715,1770075051234,-500.0,0.00013699,2]
[404358716,1770075051243,-558.47394043,0.00013699,2]
[404358717,1770075051253,-500.0,0.00013699,2]
[404358718,1770075051262,-500.0,0.00013699,2]
[404358719,1770075051271,-500.0,0.00013699,2]
[404358720,1770075051280,-170.03110366,0.00013769,5]
[404358721,1770075051289,-189.53,0.00013804,2]
[404358722,1770075051298,-180.11,0.00013815,2]
[404358723,1770075051307,-204.3464064,0.00013828,2]
[404358724,1770075051317,-1842.03266331,0.00013829,2]
[404358725,1770075051326,-225.18697532,0.00013829,2]
[404358726,1770075051335,-270.0455652,0.00013829,2]
[404358727,1770075051345,-1009.18,0.00013836,2]
[404358728,1770075051354,-200.0,0.00013836,2]
[404358729,1770075051363,-500.0,0.00013836,2]
[404358730,1770075051372,-208.65826531,0.00013836,2]
[404358731,1770075051381,-500.46237197,0.00013836,2]
[404358732,1770075051390,-522.30858015,0.00013836,2]
[404358733,1770075051399,-163.34993731,0.00013836,2]
[404358734,1770075051408,-500.0,0.00013836,2]
[404358735,1770075051417,-500.0,0.00013836,2]
[404358736,1770075051426,-500.0,0.00013836,2]
[404358737,1770075051435,-500.0,0.00013836,2]
[404358738,1770075051445,-500.0,0.00013836,2]
[404358739,1770075051454,-6453.0,0.00013896,2]
[404358740,1770075051463,-2129.0,0.000139,2]
[404358741,1770075051472,-3973.0,0.000139,3]
[404358742,1770075051481,-4000.0,0.0001391,2]
[404358743,1770075051490,-150.0,0.00013925,2]
[404358744,1770075051499,-1600.0,0.00013978,2]
[404358745,1770075051508,-151.0,0.00013991,2]
[404358746,1770075051517,-150.00878362,0.00014071,2]
[404358747,1770075051526,-359.76179104,0.000141,2]
[404358748,1770075051535,-1009.18,0.0001411,2]
[404358749,1770075051544,-44950.45508119,0.00014156,2]
[404358750,1770075051554,-841.9830397,0.00014156,2]
[404358751,1770075051563,-35759.0,0.00014231,2]
[404358752,1770075051572,-1000.0,0.00014247,2]
[404358753,1770075051581,-1000.0,0.00014247,2]
[404358754,1770075051591,-1000.0,0.00014247,2]
[404358755,1770075051601,-1000.0,0.00014247,2]
[404358756,1770075051610,-1000.0,0.00014247,2]
[404358757,1770075051619,-1000.0,0.00014247,2]
[404358758,1770075051628,-1000.0,0.00014247,2]
[404358759,1770075051637,-500.0,0.00014247,2]
[404358760,1770075051647,-1000.0,0.00014247,2]
[404358761,1770075051656,-1000.0,0.00014247,2]
[404358762,1770075051666,-1000.0,0.00014247,2]
[404358763,1770075051676,-486.90150068,0.00014247,2]
[404358764,1770075051685,-335.25607575,0.00014247,2]
[404358765,1770075051695,-1137.78662466,0.00014247,2]
[404358766,1770075051704,-1000.0,0.00014247,2]
[404358767,1770075051713,-1000.0,0.00014247,2]
[404358768,1770075051723,-1000.0,0.00014247,2]
[404358769,1770075051732,-1000.0,0.00014247,2]
[404358770,1770075051741,-501.28378078,0.00014247,2]
[404358771,1770075051751,-1000.0,0.00014247,2]
[404358772,1770075051761,-504.20951303,0.00014247,2]
[404358773,1770075051770,-500.0,0.00014247,2]
[404358774,1770075051779,-1000.0,0.00014247,2]
[404358775,1770075051787,-1000.0,0.00014247,2]
[404358776,1770075051797,-1000.0,0.00014247,2]
[404358777,1770075051806,-1000.0,0.00014247,2]
[404358778,1770075051816,-1000.0,0.00014247,2]
[404358779,1770075051825,-1000.0,0.00014247,2]
[404358780,1770075051835,-1000.0,0.00014247,2]
[404358781,1770075051845,-1000.0,0.00014247,2]
[404358782,1770075051855,-1000.0,0.00014247,2]
[404358783,1770075051864,-540.92,0.0001426,2]
[404358784,1770075051873,-540.92,0.0001426,2]
[404358785,1770075051882,-540.92,0.0001426,2]
[404358786,1770075051891,-540.92,0.0001426,2]
[404358787,1770075051901,-541.05728677,0.0001426,2]
[404358788,1770075051910,-5531.0,0.000143,5]
[404358789,1770075051920,-1910.18787185,0.00014377,2]
[404358790,1770075051929,-233.51889341,0.00014377,2]
[404358791,1770075051938,-280.03725112,0.00014377,2]
[404358792,1770075051947,-1009.18,0.00014384,2]
[404358793,1770075051957,-200.0,0.00014384,2]
[404358794,1770075051966,-500.0,0.00014384,2]
[404358795,1770075051976,-773.23,0.00014384,2]
[404358796,1770075051985,-1000.0,0.00014384,2]
[404358797,1770075051994,-1000.0,0.00014384,2]
[404358798,1770075052007,-500.0,0.00014384,2]
[404358799,1770075052016,-494.98211284,0.00014384,2]
[404358800,1770075052025,-500.0,0.00014384,2]
[404358801,1770075052034,-10331.11610173,0.0001439,2]
[404358802,1770075052044,-150.0,0.00014399,2]
[404358803,1770075052053,-2350.93477356,0.00014458,2]
[404358804,1770075052062,-300.0,0.00014473,2]
[404358805,1770075052072,-61509.22628997,0.00014497,2]
[404358806,1770075052082,-5982.44707826,0.00014514,2]
[404358807,1770075052093,-7232.78,0.00014598,2]
[404358808,1770075052103,-1009.18,0.00014658,2]
[404358809,1770075052112,-773.23,0.00014658,2]
[404358810,1770075052121,-1675.29,0.00014771,2]
[404358811,1770075052130,-1355.09,0.00014771,2]
[404358812,1770075052141,-1500.0,0.00014795,2]
[404358813,1770075052150,-1500.0,0.00014795,2]
[404358814,1770075052159,-368.88723017,0.00014795,2]
[404358815,1770075052168,-464.09949899,0.00014795,2]
[404358816,1770075052178,-1500.0,0.00014795,2]
[404358817,1770075052187,-432.32446254,0.00014795,2]
[404358818,1770075052196,-630.25604329,0.00014795,2]
[404358819,1770075052206,-500.0,0.00014795,2]
[404358820,1770075052215,-500.0,0.00014795,2]
[404358821,1770075052225,-1500.0,0.00014795,2]
[404358822,1770075052234,-500.0,0.00014795,2]
[404358823,1770075052243,-1500.0,0.00014795,2]
[404358824,1770075052252,-1503.56470175,0.00014795,2]
[404358825,1770075052261,-1000.0,0.00014795,2]
[404358826,1770075052270,-503.30357537,0.00014795,2]
[404358827,1770075052279,-1408.63714551,0.00014795,2]
[404358828,1770075052288,-1500.0,0.00014795,2]
[404358829,1770075052297,-385.68955508,0.00014795,2]
[404358830,1770075052307,-525.04982288,0.00014795,2]
[404358831,1770075052316,-1500.0,0.00014795,2]
[404358832,1770075052326,-217.59133136,0.00014795,2]
[404358833,1770075052335,-1502.44429427,0.00014795,2]
[404358834,1770075052345,-1980.86482311,0.00014925,2]
[404358835,1770075052355,-242.15909246,0.00014925,2]
[404358836,1770075052364,-290.39862941,0.00014925,2]
[404358837,1770075052373,-1009.18,0.00014932,2]
[404358838,1770075052383,-200.0,0.00014932,2]
[404358839,1770075052392,-500.0,0.00014932,2]
[404358840,1770075052402,-773.23,0.00014932,2]
[404358841,1770075052411,-1191.30611065,0.00014932,2]
[404358842,1770075052420,-2051.69202855,0.00015,2]
[404358843,1770075052429,-2140.76085253,0.00015,14]
[404358844,1770075052438,-7987.53933178,0.00015,2]
[404358845,1770075052447,-369988.95313789,0.00015,3]
[404358846,1770075052456,-29749.39567481,0.00015,2]
[404358847,1770075052464,-418.0702292,0.00015,2]
[404358848,1770075052473,-219.544,0.00015,2]
[404358849,1770075052483,-450.0,0.00015021,2]
[404358850,1770075052492,-868.9,0.00015068,2]
[404358851,1770075052502,-367.86,0.0001509,2]
[404358852,1770075052511,-500.0,0.00015096,2]
[404358853,1770075052520,-1009.18,0.00015205,2]
[404358854,1770075052529,-500.0,0.0001526,2]
[404358855,1770075052539,-9035.0,0.00015285,2]
[404358856,1770075052548,-3620.0,0.00015289,2]
[404358857,1770075052557,-212.94,0.00015297,2]
[404358858,1770075052567,-1517.64,0.000153,2]
[404358859,1770075052576,-61509.22628997,0.00015335,2]
[404358860,1770075052585,-988.5,0.00015342,2]
[404358861,1770075052593,-365.91722632,0.00015342,2]
[404358862,1770075052603,-1500.0,0.00015342,2]
[404358863,1770075052612,-269.29562662,0.00015342,2]
[404358864,1770075052621,-2000.0,0.00015342,2]
[404358865,1770075052631,-2000.0,0.00015342,2]
[404358866,1770075052641,-508.63384765,0.000154,2]
[404358867,1770075052649,-373.07297731,0.00015469,2]
[404358868,1770075052659,-775.47832561,0.00015471,2]
[404358869,1770075052669,-621.78829552,0.00015471,2]
[404358870,1770075052679,-2054.15682157,0.00015473,2]
[404358871,1770075052688,-251.11897888,0.00015473,2]
[404358872,1770075052697,-272.10659233,0.00015473,2]
[404358873,1770075052707,-1009.18,0.00015479,2]
[404358874,1770075052716,-200.0,0.0001548,2]
[404358875,1770075052725,-500.0,0.0001548,2]
[404358876,1770075052735,-201.39718201,0.00015569,2]
[404358877,1770075052745,-5982.44707826,0.00015711,2]
[404358878,1770075052754,-1009.18,0.00015753,2]
[404358879,1770075052764,-189.53,0.00015803,2]
[404358880,1770075052773,-180.10076098,0.00015826,2]
[404358881,1770075052783,-2500.0,0.0001589,2]
[404358882,1770075052799,-5000.0,0.0001596,2]
[404358883,1770075052809,-956.83032625,0.00016,2]
[404358884,1770075052819,-270.91542523,0.00016,2]
[404358885,1770075052828,-421.15115649,0.00016,2]
[404358886,1770075052838,-2850301.96034401,0.00016,4]
[404358887,1770075052848,-151.0,0.00016,2]
[404358888,1770075052857,-151.0,0.00016,2]
[404358889,1770075052866,-260.4103811,0.00016021,2]
[404358890,1770075052876,-1009.35586456,0.00016027,2]
[404358891,1770075052885,-200.0,0.00016028,2]
[404358892,1770075052895,-500.0,0.00016028,2]
[404358893,1770075052904,-9999.99,0.00016116,2]
[404358894,1770075052913,-61509.22628997,0.00016173,2]
[404358895,1770075052922,-576464.16733104,0.000162,5]
[404358896,1770075052931,-811.57,0.00016273,2]
[404358897,1770075052941,-500.0,0.00016273,2]
[404358898,1770075052950,-200.0,0.0001634,2]
[404358899,1770075053014,-519.2350024,0.00016437,2]
[404358900,1770075053024,-1675.29,0.00016437,2]
[404358901,1770075053033,-1355.09,0.00016437,2]
[404358902,1770075053043,-1902.91109443,0.00016438,2]
[404358903,1770075053053,-1775.49530724,0.00016438,2]
[404358904,1770075053063,-1775.49530724,0.00016438,2]
[404358905,1770075053072,-1775.49530724,0.00016438,2]
[404358906,1770075053081,-1775.49530724,0.00016438,2]
[404358907,1770075053091,-1775.49530724,0.00016438,2]
[404358908,1770075053100,-1775.49530724,0.00016438,2]
[404358909,1770075053110,-1775.49530724,0.00016438,2]
[404358910,1770075053119,-1775.49530724,0.00016438,2]
[404358911,1770075053129,-1775.49530724,0.00016438,2]
[404358912,1770075053139,-1775.49530724,0.00016438,2]
[404358913,1770075053149,-1775.49530724,0.00016438,2]
[404358914,1770075053158,-800.0,0.00016438,2]
[404358915,1770075053167,-355.521671,0.00016438,2]
[404358916,1770075053177,-355.521671,0.00016438,2]
[404358917,1770075053186,-355.521671,0.00016438,2]
[404358918,1770075053195,-355.521671,0.00016438,2]
[404358919,1770075053204,-180.96104,0.00016438,2]
[404358920,1770075053214,-180.96104,0.00016438,2]
[404358921,1770075053223,-180.96104,0.00016438,2]
[404358922,1770075053233,-180.96104,0.00016438,2]
[404358923,1770075053243,-150.25668222,0.00016438,2]
[404358924,1770075053252,-151.0,0.00016438,2]
[404358925,1770075053262,-3000.0,0.00016438,2]
[404358926,1770075053271,-1725.59276534,0.00016444,2]
[404358927,1770075053281,-270.0455652,0.00016569,2]
[404358928,1770075053291,-200.0,0.00016576,2]
[404358929,1770075053300,-500.0,0.00016576,2]
[404358930,1770075053309,-360.77468192,0.000166,2]
[404358931,1770075053319,-5888.0,0.00016644,2]
[404358932,1770075053328,-5888.0,0.00016647,2]
[404358933,1770075053338,-5888.0,0.0001671,2]
[404358934,1770075053348,-165.79,0.00016712,2]
[404358935,1770075053357,-5888.0,0.0001675,2]
[404358936,1770075053366,-500.0,0.00016757,2]
[404358937,1770075053375,-159.60859955,0.00016763,2]
[404358938,1770075053385,-500.0,0.00016776,2]
[404358939,1770075053394,-5888.0,0.00016808,2]
[404358940,1770075053404,-12649.0,0.00016814,2]
[404358941,1770075053413,-5888.0,0.00016816,2]
[404358942,1770075053422,-500.0,0.00016821,2]
[404358943,1770075053431,-1540.59,0.00016821,2]
[404358944,1770075053440,-639.93,0.00016821,2]
[404358945,1770075053450,-596.97,0.00016821,2]
[404358946,1770075053459,-408.83165373,0.00016821,2]
[404358947,1770075053468,-721.34,0.00016821,2]
[404358948,1770075053477,-500.0,0.00016821,2]
[404358949,1770075053487,-386.87667747,0.00016838,2]
[404358950,1770075053496,-5982.44707826,0.00016908,2]
[404358951,1770075053505,-5888.0,0.00016935,2]
[404358952,1770075053514,-5888.0,0.00016943,2]
[404358953,1770075053524,-200.0,0.00016983,2]
[404358954,1770075053533,-5888.0,0.00016984,2]
[404358955,1770075053543,-2172.44734327,0.00016986,2]
[404358956,1770075053552,-151.0,0.00016997,2]
[404358957,1770075053562,-150.0,0.00016999,2]
[404358958,1770075053571,-500.0,0.00017,5]
[404358959,1770075053580,-500.0,0.00017,2]
[404358960,1770075053590,-500.0,0.00017,2]
[404358961,1770075053601,-500.0,0.00017,5]
[404358962,1770075053610,-500.0,0.00017,2]
[404358963,1770075053619,-500.0,0.00017,5]
[404358964,1770075053628,-500.0,0.00017,2]
[404358965,1770075053638,-500.0,0.00017,2]
[404358966,1770075053647,-500.0,0.00017,5]
[404358967,1770075053656,-381303.71785566,0.00017,2]
[404358968,1770075053665,-5888.0,0.00017103,2]
[404358969,1770075053674,-280.03725112,0.00017117,2]
[404358970,1770075053684,-230.88290778,0.00017124,2]
[404358971,1770075053694,-500.0,0.00017124,2]
[404358972,1770075053704,-1675.29,0.0001715,2]
[404358973,1770075053714,-1675.29,0.0001715,2]
[404358974,1770075053723,-690.74212777,0.0001715,2]
[404358975,1770075053987,-984.54787223,0.0001715,2]
[404358976,1770075053997,-297.69232347,0.0001715,2]
[404358977,1770075054028,-499.092,0.0001715,2]
[404358978,1770075054143,-878.50567653,0.0001715,2]
[404358979,1770075054152,-1675.46797138,0.0001715,2]
[404358980,1770075054162,-1355.09,0.0001715,2]
[404358981,1770075054172,-405.04704849,0.0001715,2]
[404358982,1770075054183,-950.04295151,0.0001715,2]
[404358983,1770075054192,-1355.09,0.0001715,2]
[404358984,1770075054201,-1355.09,0.0001715,2]
[404358985,1770075054210,-1355.19124694,0.0001715,2]
[404358986,1770075054221,-1259.55627169,0.00017156,2]
[404358987,1770075054230,-3770.48066738,0.00017242,2]
[404358988,1770075054268,-2117.51933262,0.00017242,2]
[404358989,1770075054277,-1000.0,0.0001726,2]
[404358990,1770075054286,-5888.0,0.00017273,2]
[404358991,1770075054295,-811.57,0.00017314,2]
[404358992,1770075054304,-500.0,0.00017314,2]
[404358993,1770075054314,-204.37,0.00017321,2]
[404358994,1770075054324,-5888.0,0.00017428,2]
[404358995,1770075054334,-200.0,0.00017468,2]
[404358996,1770075054345,-204.37,0.00017485,2]
[404358997,1770075054354,-10386.5467777,0.000175,2]
[404358998,1770075054371,-3055.96317661,0.000175,2]
[404358999,1770075054381,-1606.61895264,0.000175,2]
[404359000,1770075054391,-1518.43917855,0.00017534,2]
[404359001,1770075054402,-1000.0,0.00017534,2]
[404359002,1770075054411,-159.60859955,0.00017602,2]
[404359003,1770075054420,-290.39862941,0.00017665,2]
[404359004,1770075054429,-500.0,0.00017672,2]
[404359005,1770075054438,-782.62456958,0.000177,2]
[404359006,1770075054447,-387.0,0.0001773,2]
[404359007,1770075054457,-387.0,0.0001773,2]
[404359008,1770075054466,-387.0,0.00017739,2]
[404359009,1770075054475,-387.0,0.00017746,2]
[404359010,1770075054484,-387.0,0.00017752,2]
[404359011,1770075054494,-387.0,0.00017756,2]
[404359012,1770075054503,-441.4730334,0.00017757,2]
[404359013,1770075054512,-387.0,0.00017773,2]
[404359014,1770075054521,-165.62377034,0.00017774,2]
[404359015,1770075054530,-387.0,0.00017787,2]
[404359016,1770075054540,-387.0,0.00017794,2]
[404359017,1770075054549,-387.0,0.00017796,2]
[404359018,1770075054559,-502.14782899,0.000178,3]
[404359019,1770075054571,-387.0,0.00017801,2]
[404359020,1770075054582,-387.0,0.00017801,2]
[404359021,1770075054592,-387.0,0.00017802,2]
[404359022,1770075054602,-387.0,0.00017802,2]
[404359023,1770075054612,-1000.0,0.00017808,2]
[404359024,1770075054621,-387.0,0.00017814,2]
[404359025,1770075054631,-387.0,0.00017818,2]
[404359026,1770075054640,-387.0,0.00017818,2]
[404359027,1770075054651,-385.0,0.00017819,2]
[404359028,1770075054660,-387.0,0.00017829,2]
[404359029,1770075054670,-5888.0,0.00017835,2]
[404359030,1770075054679,-387.0,0.00017837,2]
[404359031,1770075054688,-387.0,0.0001784,2]
[404359032,1770075054698,-387.0,0.00017842,2]
[404359033,1770075054707,-387.0,0.00017847,2]
[404359034,1770075054717,-387.0,0.00017853,2]
[404359035,1770075054727,-252.70743456,0.00017855,2]
[404359036,1770075054737,-1001.93671758,0.0001786,2]
[404359037,1770075054746,-387.0,0.00017863,2]
[404359038,1770075054756,-387.0,0.00017874,2]
[404359039,1770075054766,-387.0,0.00017874,2]
[404359040,1770075054775,-387.0,0.00017875,2]
[404359041,1770075054785,-5888.0,0.0001788,2]
[404359042,1770075054796,-387.0,0.0001788,2]
[404359043,1770075054806,-385.0,0.00017883,2]
[404359044,1770075054815,-387.0,0.00017885,2]
[404359045,1770075054825,-387.0,0.00017885,2]
[404359046,1770075054834,-387.0,0.00017888,2]
[404359047,1770075054847,-500.0,0.000179,2]
[404359048,1770075054857,-515.85083038,0.000179,2]
[404359049,1770075054866,-20407.19883095,0.000179,2]
[404359050,1770075054876,-387.0,0.00017906,2]
[404359051,1770075054886,-387.0,0.00017907,2]
[404359052,1770075054895,-387.0,0.0001791,2]
[404359053,1770075054904,-387.0,0.00017913,2]
[404359054,1770075054914,-387.0,0.00017922,2]
[404359055,1770075054923,-9.85784774,0.00017923,2]
[404359056,1770075054935,-377.14215226,0.00017923,2]
[404359057,1770075054947,-1412.95472011,0.00017927,2]
[404359058,1770075054960,-461.92439387,0.00017927,2]
[404359059,1770075054972,-573.674504,0.00017927,2]
[404359060,1770075054984,-1267.82664481,0.00017927,2]
[404359061,1770075054998,-2171.61973721,0.00017927,2]
[404359062,1770075055011,-387.0,0.00017943,2]
[404359063,1770075055022,-305.64052574,0.00017948,2]
[404359064,1770075055032,-387.0,0.00017954,2]
[404359065,1770075055042,-5888.0,0.00017955,2]
[404359066,1770075055051,-391.0,0.00017962,2]
[404359067,1770075055064,-387.0,0.00017966,2]
[404359068,1770075055075,-205.61034929,0.00017977,2]
[404359069,1770075056712,-1.7e-07,0.00017977,2]
[404359070,1770075056734,-181.38965054,0.00017977,2]